[Event "Ceske Budejovice IM 2022"]
[Site "Ceske Budejovice"]
[Date "2022.07.06"]
[Round "6.4"]
[White "Mirzoev, Azer"]
[Black "Civin, Tomas"]
[Result "1-0"]
[ECO "D30"]
[WhiteElo "2424"]
[BlackElo "2419"]
[Annotator "TA"]
[PlyCount "119"]
[EventDate "2022.07.01"]
[EventType "tourn"]
[EventCountry "CZE"]
[SourceTitle "playchess.com"]
[Source "ChessBase"]
[SourceQuality "1"]
[TimeControl "40/5400+30:1800+30"]

{[%evp 14,119,21,20,35,40,35,37,38,54,45,39,56,29,42,36,74,32,38,31,29,31,54,57,52,57,63,61,60,50,118,133,183,176,175,191,183,173,274,149,135,150,145,142,173,179,389,359,369,286,487,472,499,424,456,472,707,707,731,554,744,460,461,449,543,551,531,425,1006,991,961,900,1438,866,833,826,4843,807,1033,1033,1033,1033,1033,1008,989,974,962,960,1033,1027,1172,1171,1131,1000,909,895,928,895,1858,1780,6121,6114,6107,6083,1805,1683,989,874]} 1. d4 {[%emt 0:00:38]} d5 {[%emt 0:00:18]} 2. c4 {[%emt 0:00:04]} e6 {[%emt 0:00:22]} 3. Nf3 {[%emt 0:00:08]} dxc4 {[%emt 0:03:55]} 4. Qa4+ {[%emt 0:00:55]} Nd7 {[%emt 0:01:39]} 5. g3 {[%emt 0:00:15]} Ngf6 {[%emt 0:01:29]} 6. Bg2 {[%emt 0:00:08]} c5 {[%emt 0:01:38]} 7. Qxc4 {[%emt 0:03:41]} Nb6 {[%emt 0:09:03]} 8. Qd3 {[%emt 0:02:40]} Be7 {[%emt 0:03:02] E03: Open Catalan: 5 Qa4+ Nbd7 6 Qxc4.} 9. O-O {[%emt 0:00:40]} O-O {[%emt 0:00:12]} 10. Nc3 {[%emt 0:02:01]} cxd4 {[%emt 0:03:45] White is slightly better.} 11. Nxd4 {[%emt 0:02:00]} Nbd5 {[%emt 0:17:10]} 12. Nxd5 {[%emt 0:01:41]} Nxd5 {[%emt 0:01:12]} 13. Rd1 {[%emt 0:00:43]} Bf6 {[%emt 0:02:01]} 14. Nf3 {[%emt 0:12:46] [#]} Qb6 $146 {[%emt 0:02:47]} ({Predecessor:} 14... Nb6 15. Qxd8 Rxd8 16. Bg5 Bd7 17. Bxf6 gxf6 18. Nd4 Rab8 19. b3 Rdc8 20. f4 Rc7 21. Kf2 Rbc8 {1-0 (38) Barber,P (2218)-Kuerten,D (2086) ICCF email 2009}) 15. e4 {[%emt 0:13:25]} Nb4 {[%emt 0:01:54]} 16. Qe2 $36 {[%emt 0:00:05][%mdl 2048] White has some pressure.} e5 {[%emt 0:02:43]} 17. Be3 {[%emt 0:01:51]} Qa6 {[%emt 0:00:30]} 18. Qxa6 {[%emt 0:00:43]} Nxa6 {[%emt 0:01:36]} 19. Rac1 {[%emt 0:01:19]} Be6 {[%emt 0:01:38]} 20. a3 {[%emt 0:00:25]} h6 {[%emt 0:08:04]} 21. Bf1 {[%emt 0:01:25]} Bg4 {[%emt 0:04:56] [#]} ({Better is} 21... Rfc8 $1 $14) 22. Kg2 $1 $16 {[%emt 0:01:45][%cal Bg1g2,Bg2f3,Bf3g4,Bg4f5,Bf5e6,Be6e7][%mdl 32] White is more active.} Bg5 {[%emt 0:01:03]} (22... Be6 $16 {keeps fighting.} 23. Rc3 g5) 23. Bxg5 $18 {[%emt 0:01:25]} (23. Nxg5 $6 Bxd1 24. Nxf7 (24. Rxd1 hxg5 25. Rd7 Rab8 $11) 24... Kxf7 $11) 23... hxg5 {[%emt 0:00:05]} 24. h3 {[%emt 0:08:32]} Bxf3+ {[%emt 0:02:30]} 25. Kxf3 {[%emt 0:00:06]} Rfd8 {[%emt 0:01:50]} (25... Rfc8 $142 26. Rxc8+ Rxc8) 26. b4 {[%emt 0:02:05]} ({White should try} 26. Rxd8+ $18 Rxd8 27. b4) 26... Rxd1 $16 {[%emt 0:01:19]} 27. Rxd1 {[%emt 0:00:08][%mdl 4096] Endgame Hoping for Rd7. KRB-KRN} Rc8 {[%emt 0:01:06]} 28. Kg4 {[%emt 0:04:45]} f6 {[%emt 0:04:18]} 29. Rd7 {[%emt 0:16:00]} Nc7 $2 {[%emt 0:01:50]} (29... Rc7 30. Rd8+ Kf7) 30. Kf5 $18 {[%emt 0:09:46]} Kh7 {[%emt 0:01:18]} 31. a4 {[%emt 0:02:13] Prevents b5.} Ne8 $2 {[%emt 0:03:43]} (31... b5 {was worth a try.} 32. axb5 Kh6) 32. Ke6 {[%emt 0:01:10] White is clearly winning.} Rc1 {[%emt 0:01:07]} 33. Bd3 {[%emt 0:01:26]} Nc7+ {[%emt 0:00:18]} 34. Ke7 {[%emt 0:01:55]} b6 {[%emt 0:06:02]} (34... g4 $142) 35. b5 {[%emt 0:00:07]} Rc3 {[%emt 0:00:08]} 36. Rd6 {[%emt 0:02:12]} Kg6 {[%emt 0:00:32]} 37. Rc6 {[%emt 0:03:38]} Rxd3 {[%emt 0:02:35]} 38. Rxc7 {[%emt 0:00:04] KR-KR} Rd4 {[%emt 0:00:18]} 39. Rxa7 {[%emt 0:00:11] aiming for a5.} Rxe4 {[%emt 0:00:08]} 40. Kd6 {[%emt 0:00:16]} (40. a5 bxa5 41. Kd6 (41. Rxa5 Rb4 $16) 41... g4 $18) 40... Rc4 {[%emt 0:02:50]} (40... Re2 $142 41. Kc7 (41. Kc6 f5 $16) 41... Rxf2) 41. a5 {[%emt 0:31:24]} bxa5 {[%emt 0:30:08]} 42. b6 {[%emt 0:00:48]} a4 {[%emt 0:01:21]} 43. b7 {[%emt 0:00:49]} Rb4 {[%emt 0:00:10]} 44. Kc6 {[%emt 0:00:55]} Kf5 {[%emt 0:01:39] [#]} 45. Rxa4 $3 {[%emt 0:02:33][%mdl 512]} Rxa4 {[%emt 0:00:06]} 46. b8=Q {[%emt 0:00:10] Threatening mate with Qb1+. KQ-KR} Rd4 {[%emt 0:00:05]} 47. Qb1+ {[%emt 0:00:45]} Ke6 {[%emt 0:00:00]} 48. Qg6 {[%emt 0:00:00]} Rd6+ {[%emt 0:00:00]} 49. Kc5 {[%emt 0:00:00] Qe8+ would kill now.} Rd5+ {[%emt 0:00:00]} 50. Kc4 {[%emt 0:00:00]} Rd7 {[%emt 0:00:00]} 51. Kc3 {[%emt 0:00:00]} Ra7 {[%emt 0:00:00]} 52. Kd3 {[%emt 0:00:00]} Ra3+ {[%emt 0:00:00]} 53. Ke2 {[%emt 0:00:00] Threatens to win with Qe8+.} Ra2+ {[%emt 0:00:00]} 54. Kf3 {[%emt 0:00:00] Qe8+ is the strong threat.} Ra3+ {[%emt 0:00:00]} 55. Kg4 {[%emt 0:00:00] White threatens Qe8+ and mate.} Ra4+ {[%emt 0:00:00]} 56. Kh5 {[%emt 0:00:00] White wants to mate with Qe8+.} Ra2 {[%emt 0:00:00]} 57. Qe8+ {[%emt 0:00:00]} Kd6 {[%emt 0:00:00]} 58. Qd8+ {[%emt 0:00:00]} Kc6 {[%emt 0:00:00]} 59. Qc8+ {[%emt 0:00:00]} Kd6 {[%emt 0:00:00]} 60. Qb7 {[%emt 0:00:00] Weighted Error Value: White=0.25 (precise) /Black=0.34} 1-0

[Event "Ceske Budejovice IM 2022"]
[Site "Ceske Budejovice"]
[Date "2022.07.06"]
[Round "6.5"]
[White "Lajbl, Jan"]
[Black "Finek, Vaclav"]
[Result "0-1"]
[ECO "B27"]
[WhiteElo "2212"]
[BlackElo "2393"]
[Annotator "TA"]
[PlyCount "96"]
[EventDate "2022.07.01"]
[EventType "tourn"]
[EventCountry "CZE"]
[SourceTitle "playchess.com"]
[Source "ChessBase"]
[SourceQuality "1"]
[TimeControl "40/5400+30:1800+30"]

{[%evp 11,96,14,34,46,60,61,60,49,65,62,79,90,84,89,84,76,79,22,27,22,21,13,32,22,38,31,53,43,61,59,47,35,40,18,8,0,0,0,8,10,27,10,44,0,35,-127,-92,-77,0,0,-1,-9,0,0,0,0,0,0,0,0,-2,-152,-117,-281,-267,-458,-470,-447,-441,-1235,-1151,-1164,-1114,-29980,-29981,-29979,-29980,-29983,-29984,-29986,-29987,-29988,-29989,-29989,-29990,-29990,-29991]} 1. e4 {[%emt 0:00:35]} c5 {[%emt 0:00:06]} 2. Nf3 {[%emt 0:00:03]} g6 {[%emt 0:00:04]} 3. c3 {[%emt 0:00:06]} Bg7 {[%emt 0:00:30]} 4. d4 {[%emt 0:00:05]} cxd4 {[%emt 0:03:17]} 5. cxd4 {[%emt 0:00:24]} d5 {[%emt 0:00:36]} 6. e5 {[%emt 0:00:04]} Nc6 {[%emt 0:00:16]} 7. Bb5 {[%emt 0:00:30] is more profitable than 7.Nc3 at the moment. B27: Sicilian: 2 Nf3, unusual Black 2nd moves.} Bg4 {[%emt 0:02:16]} 8. Bxc6+ {[%emt 0:03:29]} bxc6 {[%emt 0:00:06]} 9. O-O {[%emt 0:00:57] White is slightly better.} Qb6 {[%emt 0:09:19]} 10. Nbd2 {[%emt 0:02:40]} Nh6 {[%emt 0:14:16]} 11. h3 {[%emt 0:02:03]} Bxf3 {[%emt 0:00:06]} 12. Nxf3 {[%emt 0:00:05]} O-O {[%emt 0:00:21]} 13. b3 {[%emt 0:10:08]} f6 {[%emt 0:09:53]} 14. exf6 {[%emt 0:04:05]} ({White should play} 14. Bf4 $16) 14... exf6 $11 {[%emt 0:00:10]} 15. Ba3 {[%emt 0:00:46]} Rfe8 {[%emt 0:00:14] [#]} 16. Qc2 $146 {[%emt 0:04:37]} ({Predecessor:} 16. Bc5 Qa6 17. Re1 Nf7 18. Qd2 Bh6 19. Qb4 Bf4 20. Be7 Rab8 21. Qc3 Nd6 22. Bxd6 Bxd6 23. Rxe8+ Rxe8 24. Rc1 Re6 25. g3 Bf8 26. Rc2 Qb5 27. Kg2 {½-½ (27) Casper,T (2420)-Haensel,T (2260) Germany 1999}) 16... Qa6 {[%emt 0:02:29]} 17. Bc5 {[%emt 0:00:51]} Re2 {[%emt 0:01:22]} 18. Qc3 {[%emt 0:04:06]} Rae8 {[%emt 0:19:34]} 19. Rfe1 {[%emt 0:15:21]} Bf8 {[%emt 0:10:28]} 20. Rxe2 {[%emt 0:10:50]} Rxe2 {[%emt 0:00:24]} 21. a4 {[%emt 0:01:12]} Nf5 {[%emt 0:03:38]} 22. Rc1 {[%emt 0:13:59]} Bh6 {[%emt 0:07:17]} 23. Qb4 {[%emt 0:05:49] [#] And now Qb8+ would win.} Qc8 {[%emt 0:01:46] Inhibits Qb8.} (23... Bxc1 $2 24. Qb8+ Kf7 25. Qf8+ Ke6 26. Qe8+ Ne7 27. Qxe7+ Kf5 28. Nh4+ (28. g4+ Kf4 $11) 28... Kg5 29. f4+ Kxf4 30. Bd6+ (30. Qxf6+ Ke3 $16) 30... Re5 31. dxe5 $18) 24. Ra1 {[%emt 0:07:11]} a6 {[%emt 0:02:36][%cal Ba7a6,Ba6a5][%mdl 32]} 25. Kf1 {[%emt 0:02:31]} Re4 {[%emt 0:02:10]} 26. Re1 {[%emt 0:05:14]} Bf4 {[%emt 0:01:50]} 27. g4 {[%emt 0:01:56]} Ng7 {[%emt 0:01:38]} 28. Bd6 $2 {[%emt 0:01:16]} (28. Rxe4 $14 {stays ahead.} dxe4 29. Qc4+ Qe6 30. Ne1) 28... a5 {[%emt 0:01:19]} 29. Qa3 {[%emt 0:01:01]} h5 {[%emt 0:02:38]} (29... Rxe1+ $17 30. Nxe1 Qa6+ 31. Kg1 Qe2 32. Bxf4 Qxe1+ 33. Kg2 Qe4+ 34. Kg3 g5) 30. Bxf4 {[%emt 0:02:16]} Rxf4 {[%emt 0:00:14]} 31. Nh2 {[%emt 0:00:13]} Qa6+ {[%emt 0:01:39]} ({Don't play} 31... hxg4 32. Nxg4 Rxg4 33. hxg4 $16) 32. Kg2 {[%emt 0:00:59]} Qd3 {[%emt 0:00:15] aiming for ...hxg4.} (32... Rxd4 33. Qe7 Re4 34. Rxe4 dxe4 35. Qxf6 $16) 33. Qe7 {[%emt 0:00:43]} Qxd4 {[%emt 0:01:01] Really sharp!} 34. Re3 {[%emt 0:00:29]} Re4 {[%emt 0:01:18]} 35. Qd8+ {[%emt 0:00:09]} Kh7 {[%emt 0:00:13]} 36. Rf3 {[%emt 0:00:43]} (36. Nf3 $11 Qa1 37. gxh5 Rxe3 38. hxg6+ Kxg6 39. fxe3) 36... f5 {[%emt 0:00:19] ...Ne6 is the strong threat.} ({And not} 36... hxg4 37. Nxg4 Rxg4+ 38. hxg4 Qxg4+ 39. Rg3 Qe4+ 40. Kh2 $11) 37. Qxa5 $2 {[%emt 0:00:44] Now White is beyond hope.} (37. gxh5 $17 {is a better defense.} Nxh5 38. Nf1) 37... Ne6 $19 {[%emt 0:00:51]} ({But not} 37... fxg4 $2 38. hxg4 Ne6 39. gxh5 gxh5 40. Kg1) 38. gxf5 {[%emt 0:00:22]} (38. gxh5 {is the only way for White.} Nf4+ 39. Rxf4 Rxf4 40. Nf3) 38... Nf4+ {[%emt 0:00:23]} 39. Rxf4 {[%emt 0:00:14]} Rxf4 {[%emt 0:00:24][%cal Be4f4,Bf4f5,Bf5g5,Bg5e5][%mdl 4128] Endgame KQR-KQN} 40. Qc7+ {[%emt 0:00:28]} (40. Qe1 $142 gxf5 41. f3) 40... Kh6 {[%emt 0:00:34]} 41. f3 {[%emt 0:06:48]} Rxf5 {[%emt 0:01:19] [#] ( -> ...Qb2+)} 42. Qe7 {[%emt 0:02:02]} Rg5+ {[%emt 0:12:50] Black mates.} 43. Ng4+ {[%emt 0:00:48]} hxg4 {[%emt 0:00:12]} 44. hxg4 {[%emt 0:00:42]} Re5 {[%emt 0:02:43]} 45. Qf8+ {[%emt 0:02:36]} Kg5 {[%emt 0:00:26]} 46. Qd8+ {[%emt 0:03:06]} Kf4 {[%emt 0:00:23]} 47. Qf6+ {[%emt 0:01:05]} Ke3 {[%emt 0:00:14]} 48. Kg3 {[%emt 0:00:30]} g5 {[%emt 0:02:11] Weighted Error Value: White=0.46/Black=0.11 (very precise)} 0-1

[Event "Ceske Budejovice IM 2022"]
[Site "Ceske Budejovice"]
[Date "2022.07.07"]
[Round "7.1"]
[White "Finek, Vaclav"]
[Black "Gretarsson, Helgi Ass"]
[Result "1/2-1/2"]
[ECO "A46"]
[WhiteElo "2393"]
[BlackElo "2472"]
[Annotator "TA"]
[PlyCount "47"]
[EventDate "2022.07.01"]
[EventType "tourn"]
[EventCountry "CZE"]
[SourceTitle "playchess.com"]
[Source "ChessBase"]
[SourceQuality "1"]
[TimeControl "40/5400+30:1800+30"]

{[%evp 9,47,0,12,-3,19,9,12,19,13,0,21,0,10,6,24,0,0,3,0,-11,0,-41,0,-40,-8,-47,0,0,0,0,0,0,0,0,0,0,0,0,0,0]} 1. d4 {[%emt 0:00:01]} Nf6 {[%emt 0:00:07]} 2. Nf3 {[%emt 0:00:32]} e6 {[%emt 0:00:09]} 3. g3 {[%emt 0:00:11]} b5 {[%emt 0:05:25][%cal Bb7b5,Bb5b4][%mdl 32]} 4. Bg2 {[%emt 0:00:07]} Bb7 {[%emt 0:00:04]} 5. O-O {[%emt 0:00:05]} c5 {[%emt 0:01:33]} 6. Na3 {[%emt 0:00:16][%cal Bb1a3,Ba3c4,Bc4e5][%mdl 32] A46: 1 d4 Nf6 2 Nf3 e6: Torre, London and Colle Systems.} b4 {[%emt 0:09:55]} 7. Nc4 {[%emt 0:00:41]} d5 {[%emt 0:00:05]} 8. Nce5 {[%emt 0:00:05] [#] Strongly threatening Ng5.} Nbd7 {[%emt 0:00:23]} 9. c4 {[%emt 0:01:46]} bxc3 {[%emt 0:27:20]} 10. bxc3 {[%emt 0:02:53]} Be7 {[%emt 0:00:09]} 11. Rb1 {[%emt 0:05:28]} Qc8 {[%emt 0:00:43]} 12. Ba3 {[%emt 0:17:56]} O-O {[%emt 0:14:37]} 13. Qc2 {[%emt 0:01:59]} Nb6 {[%emt 0:10:44] [#]} 14. Rfc1 $146 {[%emt 0:26:06]} ({Predecessor:} 14. Nd2 Re8 15. Rfc1 Ba6 16. Qd1 Rb8 17. c4 Bxc4 18. Ndxc4 Nxc4 19. Rxb8 Qxb8 20. Nxc4 dxc4 21. Bxc5 Bxc5 22. dxc5 {1-0 (33) Teterev,V (2536)-Lomako,P (2361) Minsk 2013}) 14... Qc7 {[%emt 0:04:58]} 15. e3 {[%emt 0:04:33]} Ba6 {[%emt 0:01:22]} 16. Qd1 {[%emt 0:03:46][%cal Oc3c4]} Rac8 {[%emt 0:01:02]} (16... Ne4 $5 {[%cal Rf7f6]} 17. c4 Bxc4 $15) 17. Ne1 {[%emt 0:04:29]} (17. Nd2 $5 {[%cal Rc3c4]}) 17... Nc4 {[%emt 0:01:13]} (17... Nfd7 $15 18. Nxd7 Qxd7) 18. Qa4 $11 {[%emt 0:03:36] The position is equal.} Nxa3 {[%emt 0:00:06]} (18... Nxe5 $2 19. dxe5 Bc4 20. exf6 $18) 19. Qxa3 {[%emt 0:00:04]} Be2 {[%emt 0:00:03] [#] ...cxd4 is the strong threat.} 20. Qb2 {[%emt 0:00:35]} Ba6 {[%emt 0:00:52]} 21. Qa3 $1 {[%emt 0:00:08] Prevents Qa5.} Be2 {[%emt 0:00:05] Threatens to win with ...cxd4.} 22. Qb2 {[%emt 0:00:03]} Ba6 {[%emt 0:02:21]} 23. Qa3 $1 {[%emt 0:00:43] Inhibits Qa5.} Be2 {[%emt 0:00:05] White must now prevent ...cxd4.} 24. Qb2 {[%emt 0:00:25] Weighted Error Value: White=0.11 (very precise) /Black=0.08 (flawless)} 1/2-1/2

[Event "Ceske Budejovice IM 2022"]
[Site "Ceske Budejovice"]
[Date "2022.07.07"]
[Round "7.2"]
[White "Civin, Tomas"]
[Black "Lajbl, Jan"]
[Result "1/2-1/2"]
[ECO "D32"]
[WhiteElo "2419"]
[BlackElo "2212"]
[Annotator "TA"]
[PlyCount "101"]
[EventDate "2022.07.01"]
[EventType "tourn"]
[EventCountry "CZE"]
[SourceTitle "playchess.com"]
[Source "ChessBase"]
[SourceQuality "1"]
[TimeControl "40/5400+30:1800+30"]

{[%evp 12,101,29,59,68,58,27,28,24,16,21,26,27,27,35,34,28,16,16,8,39,49,45,42,90,94,112,112,112,109,114,107,114,114,247,116,123,120,113,109,103,106,104,96,92,89,97,95,95,83,87,87,87,87,87,82,82,82,82,82,82,82,87,87,87,87,97,97,97,97,97,87,97,97,97,97,97,97,97,77,77,76,76,76,76,76,76,76,76,0,76,76]} 1. d4 {[%emt 0:00:05]} d5 {[%emt 0:03:10]} 2. c4 {[%emt 0:00:08]} e6 {[%emt 0:00:07][%cal Be7e6,Be6d5,Bd5d4][%mdl 32]} 3. Nc3 {[%emt 0:00:06]} c5 {[%emt 0:00:23]} 4. cxd5 {[%emt 0:00:11]} exd5 {[%emt 0:00:04]} 5. Nf3 {[%emt 0:00:15]} Nc6 {[%emt 0:00:03]} 6. dxc5 {[%emt 0:00:42]} d4 {[%emt 0:00:28]} 7. Na4 {[%emt 0:00:09]} Bxc5 {[%emt 0:00:03][%mdl 64] Decoy. D32: Tarrasch Defence: Sidelines and lines without g3.} 8. Nxc5 {[%emt 0:00:07]} Qa5+ {[%emt 0:00:02]} 9. Bd2 {[%emt 0:00:10]} Qxc5 {[%emt 0:00:02] White has an edge.} 10. Rc1 {[%emt 0:00:10]} Qb6 {[%emt 0:00:04]} 11. e3 {[%emt 0:00:10]} dxe3 {[%emt 0:05:12]} 12. Bxe3 {[%emt 0:01:06]} Qb4+ {[%emt 0:00:06]} 13. Nd2 {[%emt 0:07:18] Threatens to win with Bc5.} Nge7 {[%emt 0:06:28] [#]} 14. Bc5 $146 {[%emt 0:11:06]} ({Predecessor:} 14. Bc4 O-O 15. O-O Bf5 16. Nb3 Rad8 17. Qe2 Qd6 18. Bc5 Qf6 19. Rfe1 Rfe8 20. Rc3 {1-0 (30) Wiley,T (2283)-Schneider,H (2130) Charleroi 2012}) 14... Qf4 {[%emt 0:06:50]} 15. Bb5 {[%emt 0:05:22] A strong pair of Bishops.} Qe5+ {[%emt 0:06:41]} (15... O-O {with more complications.} 16. Bxc6 bxc6 17. O-O Rd8) 16. Qe2 {[%emt 0:00:33]} Qxe2+ {[%emt 0:02:38]} 17. Kxe2 {[%emt 0:00:09]} Bd7 {[%emt 0:03:16]} (17... O-O $1 $14 {should be considered.}) 18. Rhe1 $1 $36 {[%emt 0:04:31][%mdl 2048] White has strong initiative.} a6 {[%emt 0:07:51]} 19. Bxc6 {[%emt 0:10:57]} Nxc6 {[%emt 0:00:47]} 20. Ne4 {[%emt 0:04:35]} O-O-O {[%emt 0:08:50] [#]} 21. Nd6+ $1 {[%emt 0:02:08]} Kb8 {[%emt 0:03:37]} 22. Nxf7 {[%emt 0:01:11] Kf1 is the strong threat. White is more active.} Rhe8+ {[%emt 0:01:52] [#]} (22... Rde8+ $16 23. Kd2 Rhg8) 23. Kf1 {[%emt 0:00:27]} (23. Be3 $1 $18 {is the precise move to win.}) 23... Rxe1+ {[%emt 0:00:53]} 24. Rxe1 {[%emt 0:00:31]} Re8 {[%emt 0:05:44]} 25. Rxe8+ {[%emt 0:01:41]} Bxe8 {[%emt 0:00:04][%mdl 4096] Endgame KBN-KBN} 26. Ng5 {[%emt 0:00:40]} h6 {[%emt 0:01:09]} 27. Ne6 {[%emt 0:01:22]} g6 {[%emt 0:04:06]} 28. a3 {[%emt 0:02:35]} Bf7 {[%emt 0:00:57]} 29. Nf4 {[%emt 0:01:48]} Kc7 {[%emt 0:02:20]} 30. Bf8 {[%emt 0:03:33]} h5 {[%emt 0:03:13]} 31. Ke2 {[%emt 0:01:16]} Nd4+ {[%emt 0:02:36]} 32. Ke3 {[%emt 0:01:42]} Ne6 {[%emt 0:00:56]} 33. Nxe6+ {[%emt 0:00:59]} Bxe6 {[%emt 0:00:07] KB-KB} 34. Kf4 {[%emt 0:00:06]} Kd7 {[%emt 0:04:53]} 35. Ke5 {[%emt 0:03:58]} Bf5 {[%emt 0:02:19]} 36. Bb4 {[%emt 0:03:07]} Ke8 {[%emt 0:03:28]} 37. Kf6 {[%emt 0:00:10]} Bd3 {[%emt 0:02:13]} 38. h4 {[%emt 0:02:16]} Be4 {[%emt 0:02:19]} 39. f3 {[%emt 0:01:28]} Bc2 {[%emt 0:02:07]} 40. g4 {[%emt 0:02:51]} Bd3 {[%emt 0:02:25]} 41. Bc5 {[%emt 0:32:41]} Bc2 {[%emt 0:31:16]} 42. a4 {[%emt 0:00:32][%cal Ba3a4,Ba4a5][%mdl 32]} Bd3 {[%emt 0:01:04]} 43. a5 {[%emt 0:00:20]} Bc2 {[%emt 0:00:39]} 44. gxh5 {[%emt 0:00:41]} gxh5 {[%emt 0:00:35]} 45. Kg5 {[%emt 0:00:08]} Bd1 {[%emt 0:00:36]} 46. Kxh5 {[%emt 0:00:27] Black must now prevent Kg6.} Bxf3+ {[%emt 0:00:04]} 47. Kg6 {[%emt 0:00:07] h5 would kill now.} Be4+ {[%emt 0:00:05]} 48. Kf6 {[%emt 0:00:14] White threatens h5 and mate.} Bf3 {[%emt 0:00:08]} 49. Ke6 {[%emt 0:00:11]} Bg4+ {[%emt 0:01:12]} 50. Kf6 {[%emt 0:00:07] Hoping for Kg6.} Bf3 $1 {[%emt 0:00:06]} 51. Kg5 {[%emt 0:00:58] Weighted Error Value: White=0.08 (flawless) /Black=0.07 (flawless)} 1/2-1/2

[Event "Ceske Budejovice IM 2022"]
[Site "Ceske Budejovice"]
[Date "2022.07.07"]
[Round "7.3"]
[White "Plischki, Sebastian"]
[Black "Mirzoev, Azer"]
[Result "0-1"]
[ECO "D45"]
[WhiteElo "2384"]
[BlackElo "2424"]
[Annotator "TA"]
[PlyCount "34"]
[EventDate "2022.07.01"]
[EventType "tourn"]
[EventCountry "CZE"]
[SourceTitle "playchess.com"]
[Source "ChessBase"]
[SourceQuality "1"]
[TimeControl "40/5400+30:1800+30"]

{[%evp 15,34,14,17,7,18,17,27,21,27,0,7,0,0,0,0,-287,-304,-283,-281,-287,-269]} 1. d4 {[%emt 0:00:05]} d5 {[%emt 0:00:04]} 2. c4 {[%emt 0:00:10]} c6 {[%emt 0:00:08]} 3. Nf3 {[%emt 0:00:09]} Nf6 {[%emt 0:00:03]} 4. e3 {[%emt 0:00:22]} a6 {[%emt 0:00:54]} 5. Nc3 {[%emt 0:00:34]} e6 {[%emt 0:00:44]} 6. b3 {[%emt 0:00:33]} Bb4 {[%emt 0:00:08]} 7. Bd2 {[%emt 0:00:05]} Nbd7 {[%emt 0:00:07]} 8. Bd3 {[%emt 0:00:12]} O-O {[%emt 0:00:19]} 9. O-O {[%emt 0:00:10][%cal Oc3d5] D45: Semi-Slav: 5 e3.} Qe7 {[%emt 0:00:41]} 10. Re1 {[%emt 0:01:12]} h6 {[%emt 0:03:46]} (10... e5 {keeps more tension.} 11. dxe5 Nxe5 12. Nxe5 Qxe5 13. Nxd5 Nxd5 14. cxd5 Bd6) 11. h3 {[%emt 0:04:28] [#] White has an edge.} Rd8 $146 {[%emt 0:04:14]} ({Predecessor:} 11... e5 12. Nxe5 Nxe5 13. dxe5 Qxe5 14. Nxd5 Nxd5 15. cxd5 Bxd2 16. Qxd2 Qxd5 17. Rad1 Qc5 18. Qc2 Qxc2 19. Bxc2 Be6 20. g4 {½-½ (20) Palladino,M (2304)-Lever,E ICCF email 2021}) 12. Qc2 {[%emt 0:03:32]} e5 {[%emt 0:12:32]} 13. dxe5 {[%emt 0:04:19]} Nxe5 {[%emt 0:00:05]} 14. Nxe5 {[%emt 0:02:21]} Qxe5 {[%emt 0:02:41]} 15. Nxd5 {[%emt 0:10:51][%mdl 8192] [#]} Bxd2 $1 $19 {[%emt 0:13:19] Black has a decisive advantage.} ({Worse is} 15... Nxd5 16. cxd5 Bxd2 17. Qxd2 $11) 16. Nxf6+ {[%emt 0:00:16]} Qxf6 {[%emt 0:00:08]} 17. Qxd2 {[%emt 0:00:17]} Bf5 {[%emt 0:00:57] Weighted Error Value: White=0.73/Black=0.03 (flawless)} 0-1

[Event "Ceske Budejovice IM 2022"]
[Site "Ceske Budejovice"]
[Date "2022.07.07"]
[Round "7.4"]
[White "Svanda, Ondrej"]
[Black "Nagy, Ladislav"]
[Result "1/2-1/2"]
[ECO "A14"]
[WhiteElo "2363"]
[BlackElo "2209"]
[Annotator "RC"]
[PlyCount "85"]
[EventDate "2022.07.01"]
[EventType "tourn"]
[EventCountry "CZE"]
[SourceTitle "playchess.com"]
[Source "ChessBase"]
[SourceQuality "1"]
[TimeControl "40/5400+30:1800+30"]

1. c4 {[%emt 0:00:03]} e6 {[%emt 0:00:54]} 2. g3 {[%emt 0:00:05]} d5 {[%emt 0:00:59]} 3. Nf3 {[%emt 0:00:07]} Nf6 {[%emt 0:00:32]} 4. Bg2 {[%emt 0:00:04]} Be7 {[%emt 0:00:47]} 5. O-O {[%emt 0:00:07]} O-O {[%emt 0:00:44]} 6. d4 {[%emt 0:00:04]} dxc4 {[%emt 0:01:13]} 7. Qc2 {[%emt 0:00:02]} a6 {[%emt 0:01:22]} 8. a4 {[%emt 0:00:04]} Bd7 {[%emt 0:02:23]} 9. Qxc4 {[%emt 0:00:03]} Bc6 {[%emt 0:02:15]} 10. Bf4 {[%emt 0:00:02]} Nbd7 {[%emt 0:05:32]} 11. Nc3 {[%emt 0:00:19]} Rc8 {[%emt 0:08:51]} 12. Rfd1 {[%emt 0:03:20]} Bd6 {[%emt 0:07:15]} 13. Bd2 {[%emt 0:01:02]} Ne4 {[%emt 0:07:39]} 14. Nxe4 {[%emt 0:07:31]} Bxe4 {[%emt 0:00:07]} 15. b4 {[%emt 0:00:32]} c6 {[%emt 0:05:47]} 16. Ng5 {[%emt 0:14:28]} Bxg2 {[%emt 0:02:10]} 17. Kxg2 {[%emt 0:01:09]} Be7 {[%emt 0:03:06]} 18. Nf3 {[%emt 0:14:32]} Nf6 {[%emt 0:07:39]} 19. Qd3 {[%emt 0:02:52]} Qd5 {[%emt 0:02:53]} 20. Rab1 {[%emt 0:00:30]} Qe4 {[%emt 0:05:06]} 21. Bg5 {[%emt 0:00:54]} Qxd3 {[%emt 0:03:30]} 22. Rxd3 {[%emt 0:00:10]} h6 {[%emt 0:03:24]} 23. Bxf6 {[%emt 0:00:05]} Bxf6 {[%emt 0:00:04]} 24. Rc3 {[%emt 0:02:33]} Rfe8 {[%emt 0:06:11]} 25. Rd1 {[%emt 0:05:47]} Rcd8 {[%emt 0:02:14]} 26. Rcd3 {[%emt 0:00:22]} Rd5 {[%emt 0:03:38]} 27. h4 {[%emt 0:01:36]} Red8 {[%emt 0:03:01]} 28. Kf1 {[%emt 0:02:09]} Be7 {[%emt 0:02:15]} 29. Rb1 {[%emt 0:00:46]} Bf6 {[%emt 0:00:22]} 30. e4 {[%emt 0:03:29]} R5d7 {[%emt 0:00:43]} 31. Ke2 {[%emt 0:00:02]} e5 {[%emt 0:03:52]} 32. Rbd1 {[%emt 0:01:12]} exd4 {[%emt 0:00:05]} 33. e5 {[%emt 0:00:09]} Be7 {[%emt 0:06:47]} 34. Rb3 {[%emt 0:01:06]} Rd5 {[%emt 0:01:05]} 35. Kd3 {[%emt 0:00:05]} f6 {[%emt 0:00:59]} 36. Re1 {[%emt 0:00:39]} fxe5 {[%emt 0:00:38]} 37. Nxe5 {[%emt 0:00:00]} Bf6 {[%emt 0:01:02]} 38. Nc4 {[%emt 0:00:02]} Kf7 {[%emt 0:01:23]} 39. Nd2 {[%emt 0:01:42]} Re5 {[%emt 0:00:55]} 40. Ne4 {[%emt 0:00:07]} Rd7 {[%emt 0:00:33]} 41. Re2 {[%emt 0:32:31]} Kg6 {[%emt 0:13:34]} 42. Rb1 {[%emt 0:00:00]} Bd8 {[%emt 0:05:10]} 43. Rbe1 {[%emt 0:00:00]} 1/2-1/2